[Event "56th Biel Festival MTO 2023"]
[White "Papaux,Steve"]
[Black "Pham,Le Thao Nguyen"]
[Site "Biel"]
[Round "3.28"]
[Annotator "RC"]
[Result "0-1"]
[Date "2023.07.19"]
[WhiteElo "2064"]
[BlackElo "2369"]
[PlyCount "66"]
[TimeControl "60"]

1. d4 {[%emt 0:0:0]} d5 {[%emt 0:0:0]} 2. c4 {[%emt 0:0:0]} c6 {[%emt 0:0:0]} 3. Nf3 {[%emt 0:0:0]} Nf6 {[%emt 0:0:0]} 4. Nc3 {[%emt 0:0:0]} a6 {[%emt 0:0:0]} 5. g3 {[%emt 0:0:0]} Bf5 {[%emt 0:0:0]} 6. Qb3 {[%emt 0:0:0]} Ra7 {[%emt 0:0:0]} 7. c5 {[%emt 0:0:0]} h6 {[%emt 0:0:21]} 8. Na4 {[%emt 0:8:25]} Nbd7 {[%emt 0:3:9]} 9. Nb6 {[%emt 0:0:35]} e5 {[%emt 0:11:20]} 10. Nxd7 {[%emt 0:0:54]} Nxd7 {[%emt 0:0:14]} 11. Nxe5 {[%emt 0:0:30]} Nxe5 {[%emt 0:0:31]} 12. Qb6 {[%emt 0:0:30]} Qxb6 {[%emt 0:8:11]} 13. cxb6 {[%emt 0:0:7]} Bb4+ {[%emt 0:0:14]} 14. Kd1 {[%emt 0:0:12]} Ng4 {[%emt 0:0:42]} 15. e4 {[%emt 0:0:52]} Ra8 {[%emt 0:0:54]} 16. exf5 {[%emt 0:1:11]} Nxf2+ {[%emt 0:0:11]} 17. Ke2 {[%emt 0:0:4]} Nxh1 {[%emt 0:0:7]} 18. Bf4 {[%emt 0:0:55]} f6 {[%emt 0:5:24]} 19. a3 {[%emt 0:0:50]} Be7 {[%emt 0:0:40]} 20. Bg2 {[%emt 0:1:4]} Nxg3+ {[%emt 0:1:11]} 21. hxg3 {[%emt 0:0:6]} Kd7 {[%emt 0:0:22]} 22. Bf3 {[%emt 0:1:42]} Bd8 {[%emt 0:0:40]} 23. Bh5 {[%emt 0:0:39]} Rf8 {[%emt 0:1:35]} 24. Kd3 {[%emt 0:0:47]} Bxb6 {[%emt 0:0:25]} 25. Re1 {[%emt 0:0:12]} Rad8 {[%emt 0:7:12]} 26. Re6 {[%emt 0:1:16]} Bc7 {[%emt 0:0:53]} 27. Bd2 {[%emt 0:0:51]} Bxg3 {[%emt 0:15:25]} 28. Bb4 {[%emt 0:0:23]} Rfe8 {[%emt 0:0:32]} 29. Bf7 {[%emt 0:0:27]} Bc7 {[%emt 0:0:51]} 30. a4 {[%emt 0:0:50]} a5 {[%emt 0:0:52]} 31. Bc5 {[%emt 0:0:31]} h5 {[%emt 0:0:30]} 32. Re3 {[%emt 0:1:52]} Rxe3+ {[%emt 0:0:24]} 33. Kxe3 {[%emt 0:0:4]} Rh8 {[%emt 0:0:50]} 0-1

[Event "56th Biel Festival MTO 2023"]
[White "Matsumura,Cocoro"]
[Black "Huston,Gus"]
[Site "Biel"]
[Round "3.29"]
[Annotator "RC"]
[Result "0-1"]
[Date "2023.07.19"]
[WhiteElo "2081"]
[BlackElo "2341"]
[PlyCount "114"]
[TimeControl "60"]

1. e4 {[%emt 0:0:0]} c5 {[%emt 0:0:0]} 2. Nf3 {[%emt 0:0:0]} Nc6 {[%emt 0:0:0]} 3. d4 {[%emt 0:0:0]} cxd4 {[%emt 0:0:0]} 4. Nxd4 {[%emt 0:0:0]} Nf6 {[%emt 0:0:0]} 5. Nc3 {[%emt 0:0:0]} d6 {[%emt 0:0:0]} 6. Bg5 {[%emt 0:0:0]} e6 {[%emt 0:0:0]} 7. Qd3 {[%emt 0:0:0]} a6 {[%emt 0:0:0]} 8. Nxc6 {[%emt 0:0:0]} bxc6 {[%emt 0:0:0]} 9. O-O-O {[%emt 0:0:0]} Be7 {[%emt 0:0:0]} 10. f4 {[%emt 0:0:0]} Qa5 {[%emt 0:0:0]} 11. g4 {[%emt 0:6:19]} h6 {[%emt 0:0:0]} 12. Bxf6 {[%emt 0:4:43]} gxf6 {[%emt 0:0:0]} 13. Be2 {[%emt 0:5:53]} Rb8 {[%emt 0:3:9]} 14. h4 {[%emt 0:3:7]} Rg8 {[%emt 0:1:19]} 15. g5 {[%emt 0:11:42]} fxg5 {[%emt 0:0:49]} 16. hxg5 {[%emt 0:0:8]} hxg5 {[%emt 0:0:4]} 17. Rh7 {[%emt 0:2:56]} gxf4 {[%emt 0:1:23]} 18. Bh5 {[%emt 0:0:52]} Rf8 {[%emt 0:1:48]} 19. Rg1 {[%emt 0:21:16]} Rb7 {[%emt 0:13:18]} 20. Rgg7 {[%emt 0:11:50]} Bf6 {[%emt 0:2:35]} 21. Rxf7 {[%emt 0:1:0]} Rfxf7 {[%emt 0:2:20]} 22. Qxd6 {[%emt 0:4:38]} Qd8 {[%emt 0:2:41]} 23. Qxc6+ {[%emt 0:10:35]} Kf8 {[%emt 0:0:19]} 24. Qc5+ {[%emt 0:0:53]} Kg8 {[%emt 0:0:21]} 25. Rxf7 {[%emt 0:2:15]} Rxf7 {[%emt 0:0:9]} 26. Bxf7+ {[%emt 0:0:13]} Kxf7 {[%emt 0:0:1]} 27. Qh5+ {[%emt 0:0:10]} Kg7 {[%emt 0:2:26]} 28. e5 {[%emt 0:0:24]} Be7 {[%emt 0:16:19]} 29. Qg4+ {[%emt 0:2:39]} Kf8 {[%emt 0:0:22]} 30. Qxf4+ {[%emt 0:0:52]} Ke8 {[%emt 0:0:30]} 31. Qa4+ {[%emt 0:2:28]} Qd7 {[%emt 0:0:0]} 32. Qg4 {[%emt 0:0:51]} Bb7 {[%emt 0:1:2]} 33. Qg8+ {[%emt 0:5:55]} Bf8 {[%emt 0:0:3]} 34. Qg6+ {[%emt 0:0:51]} Qf7 {[%emt 0:0:2]} 35. Qxf7+ {[%emt 0:2:10]} Kxf7 {[%emt 0:0:2]} 36. Na4 {[%emt 0:0:17]} Bc6 {[%emt 0:0:1]} 37. Nb6 {[%emt 0:0:28]} Bh6+ {[%emt 0:0:56]} 38. Kd1 {[%emt 0:0:28]} Bf4 {[%emt 0:0:19]} 39. Nc4 {[%emt 0:0:10]} Bd5 {[%emt 0:0:13]} 40. Nb6 {[%emt 0:3:2]} Bf3+ {[%emt 0:0:21]} 41. Ke1 {[%emt 0:30:5]} Bxe5 {[%emt 0:30:27]} 42. Kd2 {[%emt 0:0:0]} Ke7 {[%emt 0:0:0]} 43. b4 {[%emt 0:0:0]} Bc7 {[%emt 0:0:0]} 44. Na4 {[%emt 0:0:0]} Bd6 {[%emt 0:0:0]} 45. a3 {[%emt 0:0:0]} Bc6 {[%emt 0:0:0]} 46. Nb2 {[%emt 0:0:0]} Bf4+ {[%emt 0:0:0]} 47. Ke2 {[%emt 0:0:0]} Be5 {[%emt 0:0:0]} 48. Nd3 {[%emt 0:0:0]} Bb5 {[%emt 0:0:0]} 49. a4 {[%emt 0:0:0]} Bxd3+ {[%emt 0:0:0]} 50. Kxd3 {[%emt 0:0:0]} Kd6 {[%emt 0:0:0]} 51. c4 {[%emt 0:0:0]} Bg3 {[%emt 0:0:0]} 52. Ke4 {[%emt 0:0:0]} a5 {[%emt 0:0:0]} 53. b5 {[%emt 0:0:0]} Bf2 {[%emt 0:0:0]} 54. Kf3 {[%emt 0:0:0]} Bb6 {[%emt 0:0:0]} 55. Ke4 {[%emt 0:0:0]} e5 {[%emt 0:0:0]} 56. Kf5 {[%emt 0:0:0]} Bc5 {[%emt 0:0:0]} 57. Ke4 {[%emt 0:0:0]} Ke6 {[%emt 0:0:0]} 0-1

[Event "56th Biel Festival MTO 2023"]
[White "Sutter,Oliver"]
[Black "Wang,Chuqiao"]
[Site "Biel"]
[Round "3.30"]
[Annotator "RC"]
[Result "1-0"]
[Date "2023.07.19"]
[WhiteElo "2313"]
[BlackElo "2161"]
[PlyCount "139"]
[TimeControl "60"]

1. Nf3 {[%emt 0:0:0]} Nf6 {[%emt 0:0:0]} 2. c4 {[%emt 0:0:0]} e6 {[%emt 0:0:0]} 3. g3 {[%emt 0:0:0]} d5 {[%emt 0:0:0]} 4. Bg2 {[%emt 0:0:0]} c5 {[%emt 0:0:0]} 5. cxd5 {[%emt 0:0:0]} Nxd5 {[%emt 0:0:0]} 6. O-O {[%emt 0:0:0]} Be7 {[%emt 0:0:0]} 7. d4 {[%emt 0:0:0]} O-O {[%emt 0:0:0]} 8. dxc5 {[%emt 0:0:0]} Bxc5 {[%emt 0:0:0]} 9. a3 {[%emt 0:0:0]} Be7 {[%emt 0:0:0]} 10. Qc2 {[%emt 0:0:0]} Qc7 {[%emt 0:18:53]} 11. Qxc7 {[%emt 0:0:7]} Nxc7 {[%emt 0:0:2]} 12. Nc3 {[%emt 0:0:18]} Nc6 {[%emt 0:1:2]} 13. Rd1 {[%emt 0:1:37]} e5 {[%emt 0:5:24]} 14. b4 {[%emt 0:1:20]} a6 {[%emt 0:0:46]} 15. Be3 {[%emt 0:6:11]} Be6 {[%emt 0:2:58]} 16. Ng5 {[%emt 0:23:32]} Bxg5 {[%emt 0:1:47]} 17. Bxg5 {[%emt 0:0:36]} Nb5 {[%emt 0:1:35]} 18. Nd5 {[%emt 0:13:48]} Bxd5 {[%emt 0:2:29]} 19. Rxd5 {[%emt 0:0:46]} Nbd4 {[%emt 0:10:57]} 20. Rd7 {[%emt 0:11:55]} Rab8 {[%emt 0:1:23]} 21. e3 {[%emt 0:4:7]} Ne6 {[%emt 0:2:37]} 22. Be7 {[%emt 0:0:9]} Rfc8 {[%emt 0:1:7]} 23. Rad1 {[%emt 0:9:33]} Nf8 {[%emt 0:8:28]} 24. Bxf8 {[%emt 0:1:14]} Kxf8 {[%emt 0:0:28]} 25. Kf1 {[%emt 0:12:39]} Ke8 {[%emt 0:0:37]} 26. Ke1 {[%emt 0:3:38]} h6 {[%emt 0:2:1]} 27. h4 {[%emt 0:1:20]} g6 {[%emt 0:1:44]} 28. Be4 {[%emt 0:3:42]} Nd8 {[%emt 0:9:5]} 29. R7d6 {[%emt 0:1:51]} Rc3 {[%emt 0:1:31]} 30. h5 {[%emt 0:2:7]} gxh5 {[%emt 0:1:55]} 31. Rxh6 {[%emt 0:0:3]} Rxa3 {[%emt 0:1:33]} 32. Rxh5 {[%emt 0:0:4]} Rb3 {[%emt 0:0:37]} 33. Rxe5+ {[%emt 0:1:37]} Kf8 {[%emt 0:0:4]} 34. b5 {[%emt 0:1:46]} Rxb5 {[%emt 0:3:21]} 35. Rxb5 {[%emt 0:0:8]} axb5 {[%emt 0:0:3]} 36. Rb1 {[%emt 0:0:15]} b6 {[%emt 0:0:4]} 37. Rxb5 {[%emt 0:0:4]} Ne6 {[%emt 0:0:24]} 38. Kd2 {[%emt 0:0:47]} Ke7 {[%emt 0:1:3]} 39. g4 {[%emt 0:1:22]} Nc5 {[%emt 0:0:53]} 40. Bf5 {[%emt 0:0:28]} Kd6 {[%emt 0:0:34]} 41. f4 {[%emt 0:30:53]} Kc6 {[%emt 0:30:16]} 42. Rb1 {[%emt 0:2:43]} b5 {[%emt 0:1:23]} 43. g5 {[%emt 0:0:40]} b4 {[%emt 0:0:10]} 44. Rh1 {[%emt 0:0:0]} b3 {[%emt 0:0:0]} 45. Rh7 {[%emt 0:0:0]} b2 {[%emt 0:0:0]} 46. Bb1 {[%emt 0:0:0]} Rb7 {[%emt 0:0:0]} 47. g6 {[%emt 0:0:0]} fxg6 {[%emt 0:0:0]} 48. Rxb7 {[%emt 0:0:0]} Nxb7 {[%emt 0:0:0]} 49. Bxg6 {[%emt 0:0:0]} Nd6 {[%emt 0:0:0]} 50. Kc3 {[%emt 0:0:0]} Kc5 {[%emt 0:0:0]} 51. Bd3 {[%emt 0:0:0]} Nc4 {[%emt 0:0:0]} 52. e4 {[%emt 0:0:0]} Ne3 {[%emt 0:0:0]} 53. Bb1 {[%emt 0:0:0]} Nc4 {[%emt 0:0:0]} 54. Ba2 {[%emt 0:0:0]} Ne3 {[%emt 0:0:0]} 55. Kxb2 {[%emt 0:0:0]} Ng2 {[%emt 0:0:0]} 56. f5 {[%emt 0:0:0]} Kd4 {[%emt 0:0:0]} 57. f6 {[%emt 0:0:0]} Nf4 {[%emt 0:0:0]} 58. f7 {[%emt 0:0:0]} Ng6 {[%emt 0:0:0]} 59. Bd5 {[%emt 0:0:0]} Ke5 {[%emt 0:0:0]} 60. Kc3 {[%emt 0:0:0]} Kf6 {[%emt 0:0:0]} 61. Kd4 {[%emt 0:0:0]} Ke7 {[%emt 0:0:0]} 62. e5 {[%emt 0:0:0]} Nh8 {[%emt 0:0:0]} 63. e6 {[%emt 0:0:0]} Ng6 {[%emt 0:0:0]} 64. Bb3 {[%emt 0:0:0]} Kf6 {[%emt 0:0:0]} 65. Ke4 {[%emt 0:0:0]} Nf8 {[%emt 0:0:0]} 66. Kf4 {[%emt 0:0:0]} Nh7 {[%emt 0:0:0]} 67. Kg4 {[%emt 0:0:0]} Ke7 {[%emt 0:0:0]} 68. Kf5 {[%emt 0:0:0]} Nf8 {[%emt 0:3:14]} 69. Kg5 {[%emt 0:0:0]} Nh7+ {[%emt 0:0:12]} 70. Kg6 {[%emt 0:0:0]} 1-0

[Event "56th Biel Festival MTO 2023"]
[White "Schnepp,Gunnar"]
[Black "Collin,Moritz Valentin"]
[Site "Biel"]
[Round "3.31"]
[Annotator "NA RC"]
[Result "1-0"]
[Date "2023.07.19"]
[WhiteElo "2278"]
[BlackElo "2132"]
[PlyCount "121"]
[TimeControl "60"]

1. Nf3 {[%emt 0:0:0]} d5 {[%emt 0:0:0]} 2. c4 {[%emt 0:0:0]} d4 {[%emt 0:0:0]} 3. g3 {[%emt 0:0:45]} c5 {[%emt 0:0:0]} 4. b4 {[%emt 0:1:16]} Nf6 {[%emt 0:0:0]} 5. Bb2 {[%emt 0:13:17]} Qb6 {[%emt 0:22:51]} 6. Qb3 {[%emt 0:9:27]} Nc6 {[%emt 0:4:8]} 7. b5 {[%emt 0:8:31]} Na5 {[%emt 0:5:12]} 8. Qc2 {[%emt 0:0:58]} g6 {[%emt 0:7:55]} 9. Bg2 {[%emt 0:1:59]} Bg7 {[%emt 0:2:11]} 10. O-O {[%emt 0:1:20]} O-O {[%emt 0:1:31]} 11. d3 {[%emt 0:7:28]} Bf5 {[%emt 0:10:48]} 12. Nh4 {[%emt 0:5:26]} Bg4 {[%emt 0:4:15]} 13. h3 {[%emt 0:1:22]} Bd7 {[%emt 0:0:12]} 14. Nd2 {[%emt 0:1:23]} Rae8 {[%emt 0:2:49]} 15. Rae1 {[%emt 0:5:2]} Qc7 {[%emt 0:4:46]} 16. e3 {[%emt 0:10:43]} e5 {[%emt 0:6:6]} 17. exd4 {[%emt 0:4:56]} exd4 {[%emt 0:0:13]} 18. Nb3 {[%emt 0:3:18]} Nh5 {[%emt 0:7:10]} 19. Qd2 {[%emt 0:8:26]} Nxb3 {[%emt 0:3:22]} 20. axb3 {[%emt 0:0:3]} b6 {[%emt 0:0:39]} 21. Nf3 {[%emt 0:3:11]} Bc8 {[%emt 0:6:0]} 22. Rxe8 {[%emt 0:1:44]} Rxe8 {[%emt 0:0:11]} 23. Re1 {[%emt 0:0:23]} Rxe1+ {[%emt 0:3:14]} 24. Qxe1 {[%emt 0:0:1]} Nf6 {[%emt 0:0:15]} 25. Qe5 {[%emt 0:3:1]} Qxe5 {[%emt 0:3:28]} 26. Nxe5 {[%emt 0:0:3]} a5 {[%emt 0:2:10]} 27. bxa6 {[%emt 0:3:26]} Bxa6 {[%emt 0:0:10]} 28. Bc1 {[%emt 0:0:18]} Bc8 {[%emt 0:2:5]} 29. g4 {[%emt 0:0:20]} Nd7 {[%emt 0:0:41]} 30. Nc6 {[%emt 0:1:1]} Kf8 {[%emt 0:0:33]} 31. Bf4 {[%emt 0:0:30]} Bb7 {[%emt 0:0:47]} 32. Bc7 {[%emt 0:3:27]} Bf6 {[%emt 0:1:48]} 33. Nb8 {[%emt 0:3:8]} Nxb8 {[%emt 0:0:44]} 34. Bxb7 {[%emt 0:0:3]} Nd7 {[%emt 0:0:8]} 35. Bc6 {[%emt 0:0:47]} Be5 {[%emt 0:0:39]} 36. Bd8 {[%emt 0:0:34]} Bf6 {[%emt 0:0:26]} 37. Bc7 {[%emt 0:0:29]} Be5 {[%emt 0:0:7]} 38. Bd8 {[%emt 0:0:12]} Bf6 {[%emt 0:0:7]} 39. Bc7 {[%emt 0:1:3]} Be5 {[%emt 0:0:7]} 40. Bd8 {[%emt 0:0:13]} Bf6 {[%emt 0:0:7]} 41. Bxf6 {[%emt 0:30:51]} Nxf6 {[%emt 0:30:10]} 42. f4 {[%emt 0:0:31]} h6 {[%emt 0:2:31]} 43. Kf2 {[%emt 0:0:0]} g5 {[%emt 0:0:0]} 44. Kg3 {[%emt 0:0:0]} Ng8 {[%emt 0:0:0]} 45. h4 {[%emt 0:0:0]} f6 {[%emt 0:0:0]} 46. h5 {[%emt 0:0:0]} Ne7 {[%emt 0:0:0]} 47. Bd7 {[%emt 0:0:0]} Ng8 {[%emt 0:0:0]} 48. f5 {[%emt 0:0:0]} Ne7 {[%emt 0:0:0]} 49. Kf3 {[%emt 0:0:0]} Kf7 {[%emt 0:0:0]} 50. Ke2 {[%emt 0:0:0]} Kf8 {[%emt 0:0:0]} 51. Kf2 {[%emt 0:0:0]} b5 {[%emt 0:0:0]} 52. cxb5 {[%emt 0:0:0]} Nd5 {[%emt 0:0:0]} 53. Be6 {[%emt 0:0:0]} Nb6 {[%emt 0:0:0]} 54. Ke2 {[%emt 0:0:48]} Ke7 {[%emt 0:0:0]} 55. Kd2 {[%emt 0:0:42]} Kd6 {[%emt 0:0:0]} 56. Kc2 {[%emt 0:0:8]} Na8 {[%emt 0:7:20]} 57. Kb2 {[%emt 0:1:42]} Nc7 {[%emt 0:0:31]} 58. Bc4 {[%emt 0:1:18]} Ne8 {[%emt 0:0:23]} 59. b6 {[%emt 0:0:26]} Ng7 {[%emt 0:0:35]} 60. Bb5 {[%emt 0:0:48]} Nxf5 {[%emt 0:0:29]} 61. gxf5 {[%emt 0:0:30]} 1-0

[Event "56th Biel Festival MTO 2023"]
[White "Prieb,Robert"]
[Black "Karthik Rajaa"]
[Site "Biel"]
[Round "3.32"]
[Annotator "NA"]
[Result "1/2-1/2"]
[Date "2023.07.19"]
[WhiteElo "2060"]
[BlackElo "2276"]
[PlyCount "42"]
[TimeControl "60"]

1. d4 {[%emt 0:0:0]} Nf6 {[%emt 0:0:0]} 2. c4 {[%emt 0:0:0]} e6 {[%emt 0:0:0]} 3. Nf3 {[%emt 0:0:0]} b6 {[%emt 0:0:0]} 4. a3 {[%emt 0:0:0]} Bb7 {[%emt 0:0:0]} 5. Nc3 {[%emt 0:0:0]} d5 {[%emt 0:6:7]} 6. cxd5 {[%emt 0:0:0]} Nxd5 {[%emt 0:3:40]} 7. Qc2 {[%emt 0:0:0]} Nxc3 {[%emt 0:2:16]} 8. bxc3 {[%emt 0:0:0]} Be7 {[%emt 0:4:59]} 9. e4 {[%emt 0:0:0]} O-O {[%emt 0:5:34]} 10. Bd3 {[%emt 0:0:0]} c5 {[%emt 0:0:48]} 11. O-O {[%emt 0:0:0]} Qc7 {[%emt 0:3:6]} 12. Qe2 {[%emt 0:0:0]} Nc6 {[%emt 0:5:9]} 13. d5 {[%emt 0:9:54]} c4 {[%emt 0:2:30]} 14. Bxc4 {[%emt 0:9:3]} Na5 {[%emt 0:0:26]} 15. Ba2 {[%emt 0:3:13]} exd5 {[%emt 0:0:20]} 16. exd5 {[%emt 0:1:37]} Bf6 {[%emt 0:0:59]} 17. Bb2 {[%emt 0:11:44]} Rac8 {[%emt 0:5:0]} 18. Nd2 {[%emt 0:9:46]} Be5 {[%emt 0:20:22]} 19. Nf3 {[%emt 0:4:11]} Bf6 {[%emt 0:0:5]} 20. Nd2 {[%emt 0:0:11]} Be5 {[%emt 0:7:23]} 21. Nf3 {[%emt 0:0:49]} Bf6 {[%emt 0:5:12]} 1/2-1/2

[Event "56th Biel Festival MTO 2023"]
[White "Asllani,Dorian"]
[Black "Rotunno,Flavio"]
[Site "Biel"]
[Round "3.33"]
[Annotator "NA"]
[Result "1-0"]
[Date "2023.07.19"]
[WhiteElo "2272"]
[BlackElo "2005"]
[PlyCount "84"]
[TimeControl "60"]

1. d4 {[%emt 0:0:0]} Nf6 {[%emt 0:0:0]} 2. c4 {[%emt 0:0:0]} e6 {[%emt 0:0:0]} 3. Nc3 {[%emt 0:0:0]} Bb4 {[%emt 0:0:0]} 4. Qc2 {[%emt 0:0:0]} d5 {[%emt 0:0:0]} 5. cxd5 {[%emt 0:0:0]} exd5 {[%emt 0:0:0]} 6. Nf3 {[%emt 0:0:0]} c5 {[%emt 0:3:19]} 7. Bg5 {[%emt 0:11:19]} h6 {[%emt 0:18:51]} 8. Bxf6 {[%emt 0:21:19]} Qxf6 {[%emt 0:1:43]} 9. O-O-O {[%emt 0:0:46]} Be6 {[%emt 0:22:18]} 10. e4 {[%emt 0:30:29]} Bxc3 {[%emt 0:37:2]} 11. Qxc3 {[%emt 0:15:16]} dxe4 {[%emt 0:9:59]} 12. Bb5+ {[%emt 0:2:37]} Bd7 {[%emt 0:1:28]} 13. Qxc5 {[%emt 0:2:48]} Bxb5 {[%emt 0:0:19]} 14. Qxb5+ {[%emt 0:0:17]} Qc6+ {[%emt 0:0:3]} 15. Qxc6+ {[%emt 0:0:6]} Nxc6 {[%emt 0:0:4]} 16. Rhe1 {[%emt 0:2:53]} f5 {[%emt 0:0:44]} 17. d5 {[%emt 0:0:34]} Nb4 {[%emt 0:1:50]} 18. a3 {[%emt 0:1:30]} O-O-O {[%emt 0:0:28]} 19. Ne5 {[%emt 0:4:10]} Rhe8 {[%emt 0:1:9]} 20. Nf7 {[%emt 0:4:10]} Rd7 {[%emt 0:0:23]} 21. Nxh6 {[%emt 0:2:10]} gxh6 {[%emt 0:0:20]} 22. axb4 {[%emt 0:0:0]} Re5 {[%emt 0:0:9]} 23. d6 {[%emt 0:0:42]} Rg7 {[%emt 0:1:7]} 24. g3 {[%emt 0:0:41]} Kd7 {[%emt 0:0:6]} 25. f3 {[%emt 0:0:20]} Rg6 {[%emt 0:0:50]} 26. fxe4 {[%emt 0:0:42]} Rxe4 {[%emt 0:0:34]} 27. Rxe4 {[%emt 0:0:28]} fxe4 {[%emt 0:0:4]} 28. Rd4 {[%emt 0:0:37]} Rf6 {[%emt 0:0:15]} 29. Rxe4 {[%emt 0:0:16]} Kxd6 {[%emt 0:0:3]} 30. Rh4 {[%emt 0:0:43]} Kd5 {[%emt 0:1:13]} 31. Kc2 {[%emt 0:0:33]} a6 {[%emt 0:0:52]} 32. b3 {[%emt 0:0:29]} Rf2+ {[%emt 0:0:42]} 33. Kc3 {[%emt 0:0:24]} Rf3+ {[%emt 0:0:10]} 34. Kb2 {[%emt 0:0:4]} Rf6 {[%emt 0:0:9]} 35. Rh5+ {[%emt 0:0:39]} Kd4 {[%emt 0:0:30]} 36. b5 {[%emt 0:0:20]} a5 {[%emt 0:1:2]} 37. b4 {[%emt 0:1:2]} axb4 {[%emt 0:0:38]} 38. Kb3 {[%emt 0:0:5]} Kd3 {[%emt 0:0:34]} 39. Kxb4 {[%emt 0:0:19]} Kd4 {[%emt 0:0:4]} 40. Ka5 {[%emt 0:1:10]} b6+ {[%emt 0:0:36]} 41. Ka6 {[%emt 0:30:28]} Ke3 {[%emt 0:30:45]} 42. g4 {[%emt 0:0:28]} Kf4 {[%emt 0:0:34]} 1-0

[Event "56th Biel Festival MTO 2023"]
[White "Lohia,Sohum"]
[Black "Ehsani,Yassamin"]
[Site "Biel"]
[Round "3.34"]
[Annotator "NA RC"]
[Result "1/2-1/2"]
[Date "2023.07.19"]
[WhiteElo "2247"]
[BlackElo "2106"]
[PlyCount "34"]
[TimeControl "60"]

1. e4 {[%emt 0:0:0]} e6 {[%emt 0:0:0]} 2. d4 {[%emt 0:0:0]} d5 {[%emt 0:0:0]} 3. Nc3 {[%emt 0:0:0]} Bb4 {[%emt 0:0:0]} 4. e5 {[%emt 0:0:0]} c5 {[%emt 0:0:0]} 5. a3 {[%emt 0:0:0]} Bxc3+ {[%emt 0:0:0]} 6. bxc3 {[%emt 0:0:0]} Nc6 {[%emt 0:0:0]} 7. Qg4 {[%emt 0:0:0]} g6 {[%emt 0:0:0]} 8. Nf3 {[%emt 0:0:0]} Qa5 {[%emt 0:0:0]} 9. Bd2 {[%emt 0:0:0]} c4 {[%emt 0:0:0]} 10. Qf4 {[%emt 0:20:38]} h6 {[%emt 0:1:5]} 11. Be2 {[%emt 0:5:40]} Bd7 {[%emt 0:2:11]} 12. h4 {[%emt 0:2:36]} Nge7 {[%emt 0:4:25]} 13. Qf6 {[%emt 0:9:7]} O-O-O {[%emt 0:3:17]} 14. a4 {[%emt 0:2:16]} Rh7 {[%emt 0:10:31]} 15. g4 {[%emt 0:10:31]} Rf8 {[%emt 0:10:3]} 16. O-O {[%emt 0:11:37]} Rhh8 {[%emt 0:28:39]} 17. Qf4 {[%emt 0:7:33]} h5 {[%emt 0:4:59]} 1/2-1/2

[Event "56th Biel Festival MTO 2023"]
[White "Adocchio,Giampiero"]
[Black "Rosen,Eric"]
[Site "Biel"]
[Round "3.35"]
[Annotator "RC"]
[Result "0-1"]
[Date "2023.07.19"]
[WhiteElo "2165"]
[BlackElo "2344"]
[PlyCount "80"]
[TimeControl "60"]

1. d4 {[%emt 0:0:0]} d5 {[%emt 0:0:0]} 2. c4 {[%emt 0:0:0]} e6 {[%emt 0:0:0]} 3. Nc3 {[%emt 0:0:0]} Nf6 {[%emt 0:0:0]} 4. cxd5 {[%emt 0:0:0]} exd5 {[%emt 0:0:0]} 5. Bg5 {[%emt 0:0:0]} c6 {[%emt 0:0:0]} 6. e3 {[%emt 0:0:0]} Bd6 {[%emt 0:0:0]} 7. Bd3 {[%emt 0:0:0]} h6 {[%emt 0:0:0]} 8. Bh4 {[%emt 0:0:0]} O-O {[%emt 0:0:0]} 9. Qc2 {[%emt 0:0:0]} Re8 {[%emt 0:0:0]} 10. Nf3 {[%emt 0:0:0]} Be6 {[%emt 0:0:0]} 11. O-O {[%emt 0:0:0]} Nbd7 {[%emt 0:0:0]} 12. a3 {[%emt 0:11:4]} a5 {[%emt 0:0:0]} 13. Rab1 {[%emt 0:0:29]} Rc8 {[%emt 0:0:0]} 14. Bg3 {[%emt 0:3:49]} Bxg3 {[%emt 0:0:0]} 15. hxg3 {[%emt 0:4:4]} Ng4 {[%emt 0:0:0]} 16. b4 {[%emt 0:8:17]} axb4 {[%emt 0:5:42]} 17. axb4 {[%emt 0:9:51]} b5 {[%emt 0:2:39]} 18. Ne2 {[%emt 0:13:54]} Nb6 {[%emt 0:4:26]} 19. Nf4 {[%emt 0:4:32]} Bd7 {[%emt 0:4:57]} 20. Bh7+ {[%emt 0:0:9]} Kh8 {[%emt 0:1:8]} 21. Bf5 {[%emt 0:0:30]} Nc4 {[%emt 0:1:23]} 22. Bxd7 {[%emt 0:0:55]} Qxd7 {[%emt 0:0:9]} 23. Qc3 {[%emt 0:0:40]} Qf5 {[%emt 0:24:53]} 24. Ra1 {[%emt 0:8:56]} Ra8 {[%emt 0:2:20]} 25. Qd3 {[%emt 0:8:12]} Qe4 {[%emt 0:3:1]} 26. Qc3 {[%emt 0:11:5]} Qe7 {[%emt 0:10:20]} 27. Nd3 {[%emt 0:2:46]} f6 {[%emt 0:7:38]} 28. Nh2 {[%emt 0:6:41]} h5 {[%emt 0:13:24]} 29. Rxa8 {[%emt 0:0:15]} Rxa8 {[%emt 0:0:8]} 30. Nxg4 {[%emt 0:0:5]} hxg4 {[%emt 0:0:8]} 31. Ra1 {[%emt 0:0:16]} Qe8 {[%emt 0:2:45]} 32. Nc5 {[%emt 0:1:30]} g6 {[%emt 0:2:50]} 33. Nb3 {[%emt 0:2:38]} Kg7 {[%emt 0:1:16]} 34. Rxa8 {[%emt 0:1:15]} Qxa8 {[%emt 0:0:3]} 35. Qa1 {[%emt 0:0:7]} Qa4 {[%emt 0:3:53]} 36. Qxa4 {[%emt 0:4:56]} bxa4 {[%emt 0:0:2]} 37. Nc1 {[%emt 0:0:20]} Nd2 {[%emt 0:1:1]} 38. f3 {[%emt 0:0:9]} gxf3 {[%emt 0:1:7]} 39. gxf3 {[%emt 0:0:5]} Nxf3+ {[%emt 0:0:12]} 40. Kf2 {[%emt 0:0:5]} Nd2 {[%emt 0:0:32]} 0-1

[Event "56th Biel Festival MTO 2023"]
[White "Monteverde,Jonathan"]
[Black "Kocharin,Timur"]
[Site "Biel"]
[Round "3.36"]
[Annotator "NA"]
[Result "1-0"]
[Date "2023.07.19"]
[WhiteElo "2074"]
[BlackElo "2225"]
[PlyCount "133"]
[TimeControl "60"]

1. d4 {[%emt 0:0:0]} Nf6 {[%emt 0:0:0]} 2. c4 {[%emt 0:0:0]} e6 {[%emt 0:0:0]} 3. Nc3 {[%emt 0:0:0]} Bb4 {[%emt 0:0:0]} 4. Qc2 {[%emt 0:0:0]} d5 {[%emt 0:0:0]} 5. cxd5 {[%emt 0:0:0]} exd5 {[%emt 0:0:0]} 6. Bg5 {[%emt 0:0:0]} h6 {[%emt 0:0:0]} 7. Bh4 {[%emt 0:0:0]} g5 {[%emt 0:0:0]} 8. Bg3 {[%emt 0:0:0]} Nc6 {[%emt 0:0:0]} 9. e3 {[%emt 0:0:0]} h5 {[%emt 0:0:26]} 10. Bb5 {[%emt 0:0:0]} Ne4 {[%emt 0:5:37]} 11. Be5 {[%emt 0:21:0]} f6 {[%emt 0:8:14]} 12. f3 {[%emt 0:0:14]} fxe5 {[%emt 0:9:30]} 13. fxe4 {[%emt 0:0:7]} Rh6 {[%emt 0:7:18]} 14. a3 {[%emt 0:9:18]} Bxc3+ {[%emt 0:1:1]} 15. bxc3 {[%emt 0:0:8]} exd4 {[%emt 0:5:39]} 16. cxd4 {[%emt 0:4:17]} dxe4 {[%emt 0:15:6]} 17. Qc4 {[%emt 0:7:27]} Rd6 {[%emt 0:6:17]} 18. Qg8+ {[%emt 0:5:24]} Kd7 {[%emt 0:0:19]} 19. Qh7+ {[%emt 0:0:15]} Qe7 {[%emt 0:0:7]} 20. Qxh5 {[%emt 0:0:7]} a6 {[%emt 0:2:58]} 21. Be2 {[%emt 0:1:19]} Nd8 {[%emt 0:4:25]} 22. Nh3 {[%emt 0:0:37]} c6 {[%emt 0:9:8]} 23. Qxg5 {[%emt 0:9:7]} Nf7 {[%emt 0:2:48]} 24. Qxe7+ {[%emt 0:2:54]} Kxe7 {[%emt 0:0:1]} 25. Nf2 {[%emt 0:5:18]} Bf5 {[%emt 0:1:7]} 26. g4 {[%emt 0:0:14]} Bh7 {[%emt 0:0:8]} 27. h4 {[%emt 0:0:14]} b6 {[%emt 0:2:44]} 28. Rc1 {[%emt 0:5:23]} c5 {[%emt 0:0:39]} 29. dxc5 {[%emt 0:0:41]} Rc6 {[%emt 0:0:1]} 30. O-O {[%emt 0:2:20]} bxc5 {[%emt 0:1:25]} 31. Bc4 {[%emt 0:4:5]} Rac8 {[%emt 0:3:54]} 32. Bxf7 {[%emt 0:2:12]} Kxf7 {[%emt 0:0:23]} 33. Nxe4+ {[%emt 0:0:6]} Ke7 {[%emt 0:0:14]} 34. Rf4 {[%emt 0:6:38]} c4 {[%emt 0:2:1]} 35. Nc3 {[%emt 0:0:47]} Bd3 {[%emt 0:2:48]} 36. Nd5+ {[%emt 0:2:9]} Kd7 {[%emt 0:4:46]} 37. Rd4 {[%emt 0:2:3]} Ke8 {[%emt 0:3:50]} 38. Nb4 {[%emt 0:0:17]} R6c7 {[%emt 0:0:46]} 39. Nxd3 {[%emt 0:0:27]} cxd3 {[%emt 0:0:9]} 40. Rxc7 {[%emt 0:0:11]} Rxc7 {[%emt 0:0:11]} 41. Rxd3 {[%emt 0:30:10]} Rc4 {[%emt 0:0:0]} 42. Rd4 {[%emt 0:0:0]} Rc3 {[%emt 0:0:0]} 43. Re4+ {[%emt 0:0:0]} Kf7 {[%emt 0:0:0]} 44. a4 {[%emt 0:0:0]} Rc2 {[%emt 0:0:0]} 45. h5 {[%emt 0:0:0]} Rd2 {[%emt 0:0:0]} 46. Rf4+ {[%emt 0:0:0]} Kg7 {[%emt 0:0:0]} 47. Rf2 {[%emt 0:0:0]} Rd3 {[%emt 0:0:0]} 48. Ra2 {[%emt 0:0:0]} Rxe3 {[%emt 0:0:0]} 49. Kf2 {[%emt 0:0:0]} Rc3 {[%emt 0:0:0]} 50. a5 {[%emt 0:0:0]} Rb3 {[%emt 0:0:0]} 51. Re2 {[%emt 0:0:0]} Rb5 {[%emt 0:0:0]} 52. Kf3 {[%emt 0:0:0]} Rxa5 {[%emt 0:0:0]} 53. Kf4 {[%emt 0:0:0]} Rb5 {[%emt 0:0:0]} 54. Re5 {[%emt 0:0:0]} Rb7 {[%emt 0:0:0]} 55. Kf5 {[%emt 0:0:0]} Kg8 {[%emt 0:0:0]} 56. Kg5 {[%emt 0:0:0]} Kg7 {[%emt 0:0:0]} 57. Rc5 {[%emt 0:0:0]} Rb6 {[%emt 0:0:14]} 58. Rc7+ {[%emt 0:0:0]} Kg8 {[%emt 0:0:13]} 59. h6 {[%emt 0:0:0]} Rb5+ {[%emt 0:0:11]} 60. Kg6 {[%emt 0:0:0]} Rb6+ {[%emt 0:0:4]} 61. Kh5 {[%emt 0:0:0]} a5 {[%emt 0:0:45]} 62. Ra7 {[%emt 0:0:0]} Rb5+ {[%emt 0:0:42]} 63. g5 {[%emt 0:0:0]} Rc5 {[%emt 0:0:5]} 64. h7+ {[%emt 0:0:0]} Kh8 {[%emt 0:0:36]} 65. Kh6 {[%emt 0:0:0]} Rc6+ {[%emt 0:0:39]} 66. g6 {[%emt 0:0:0]} Ra6 {[%emt 0:0:7]} 67. Rxa6 {[%emt 0:0:0]} 1-0